bitfinex/quotes_ETHUSD_20251031
["timestamp","ask_amount","ask_price","bid_price","bid_amount"]
[1761944716535,35.09330142,3869.0,3868.7,0.002]
[1761944716836,35.4990013,3869.0,3868.7,0.002]
[1761944717213,38.81759076,3869.0,3868.7,0.002]
[1761944717629,38.43171476,3869.0,3868.7,0.002]
[1761944718138,38.16691376,3869.0,3868.7,0.002]
[1761944718343,38.29280486,3869.0,3868.7,0.002]
[1761944718744,37.6057524,3869.0,3868.7,0.002]
[1761944719438,40.29203028,3869.0,3868.7,0.002]
[1761944719748,33.1265,3867.0,3865.9,0.00657066]
[1761944719957,10.434984,3865.8,3864.8,0.2889]
[1761944720259,5.87631214,3865.9,3864.9,0.2889]
[1761944720260,11.864454,3865.2,3864.9,0.2889]
[1761944720426,1.39968,3865.2,3864.9,0.2889]
[1761944720622,9.283272,3865.2,3865.1,0.2939]
[1761944720829,8.767026,3865.2,3865.1,0.2939]
[1761944721024,9.31543266,3865.2,3865.1,0.2939]
[1761944721224,1.39968,3865.3,3865.1,0.2939]
[1761944721465,12.587823,3865.2,3865.1,0.005]
[1761944721957,10.794926,3865.2,3865.1,0.2939]
[1761944722270,21.784196,3865.2,3865.1,0.2939]
[1761944722483,9.39968,3865.2,3865.1,0.5828]
[1761944724060,9.39968,3865.2,3865.1,0.2939]
[1761944724262,28.48517738,3865.2,3865.1,0.005]
[1761944724428,27.42825738,3865.2,3865.1,0.005]
[1761944725260,34.84610656,3865.2,3865.1,0.005]
[1761944725449,29.98284557,3865.2,3865.1,0.005]
[1761944725762,30.10982735,3865.2,3865.1,0.005]
[1761944726267,44.97137317,3865.2,3865.1,0.005]
[1761944726430,44.84439139,3865.2,3865.1,0.005]
[1761944726749,44.37719139,3865.2,3865.1,0.005]
[1761944726951,25.39652715,3865.2,3865.1,0.005]
[1761944727151,24.850676,3865.2,3865.1,0.005]
[1761944727352,33.23946624,3865.2,3865.1,0.005]
[1761944727565,29.21782324,3865.2,3865.1,0.005]
[1761944727770,28.71882324,3865.2,3865.1,0.005]
[1761944728144,13.83134024,3865.2,3865.1,0.005]
[1761944728482,29.05549824,3865.2,3865.1,0.005]
[1761944728846,28.84839524,3865.2,3865.1,0.005]
[1761944729288,31.41778724,3865.2,3865.1,0.005]
[1761944729672,31.82384797,3865.2,3865.1,0.005]
[1761944730389,36.26622416,3865.2,3865.1,0.005]
[1761944730554,36.05655216,3865.2,3865.1,0.005]
[1761944730748,35.51220197,3865.2,3865.1,0.007]
[1761944731375,31.94553887,3865.2,3865.1,0.007]
[1761944731991,38.30553887,3865.2,3865.1,0.007]
[1761944732357,40.99784987,3865.2,3865.1,0.007]
[1761944732984,22.06536573,3865.2,3865.1,0.2959]
[1761944733280,24.65255397,3865.2,3865.1,0.007]
[1761944733483,36.26046197,3865.2,3865.1,0.007]
[1761944734148,37.30393564,3865.2,3865.1,0.007]
[1761944734345,48.77807064,3865.2,3865.1,0.007]
[1761944734545,42.82567478,3865.2,3865.1,0.007]
[1761944735423,46.94108678,3865.2,3865.1,0.007]
[1761944736343,46.17654578,3865.2,3865.1,0.007]
[1761944736544,49.50182778,3865.2,3865.1,0.007]
[1761944736710,46.60498578,3865.2,3865.1,0.007]
[1761944737350,46.39180878,3865.2,3865.1,0.007]
[1761944737550,46.84487878,3865.2,3865.1,0.007]
[1761944737923,46.40739878,3865.2,3865.1,0.007]
[1761944738152,46.16546678,3865.2,3865.1,0.007]
[1761944738306,39.24349172,3865.2,3865.1,0.007]
[1761944738508,42.40089872,3865.2,3865.1,0.007]
[1761944738933,42.89989872,3865.2,3865.1,0.007]
[1761944739533,46.77836972,3865.2,3865.1,0.007]
[1761944740271,41.17309572,3865.2,3865.1,0.007]
[1761944740568,42.96183472,3865.2,3865.1,0.007]
[1761944740958,36.97196372,3865.2,3865.1,0.2959]
[1761944741159,36.97196372,3865.2,3865.1,0.007]
[1761944741364,32.61488072,3865.2,3865.1,0.007]
[1761944741575,35.85721472,3865.2,3865.1,0.007]
[1761944741746,36.35973208,3865.2,3865.1,0.007]
[1761944742383,35.89253208,3865.2,3865.1,0.007]
[1761944742669,40.77761608,3865.2,3865.1,0.007]
[1761944743174,40.09630172,3865.2,3865.1,0.007]
[1761944743472,37.91934172,3865.2,3865.1,0.007]
[1761944743667,36.95294572,3865.2,3865.1,0.007]
[1761944743875,34.03272172,3865.2,3865.1,0.007]
[1761944744282,34.53172172,3865.2,3865.1,0.007]
[1761944744571,38.57300672,3865.2,3865.1,0.007]
[1761944744875,37.76215172,3865.2,3865.1,0.007]
[1761944745239,37.76215172,3865.2,3864.3,0.002]
[1761944745240,27.675083,3864.7,3864.3,0.002]
[1761944745476,14.77626731,3864.4,3864.3,0.002]
[1761944745671,0.029045,3863.8,3863.6,0.2889]
[1761944745872,0.57351867,3863.8,3863.6,0.2889]
[1761944746171,4.31201867,3863.7,3863.6,0.2889]
[1761944746469,1.94415367,3863.7,3863.6,0.2889]
[1761944746670,1.94415367,3863.7,3863.6,0.5778]
[1761944746858,7.18408195,3863.7,3863.6,0.5778]
[1761944747379,0.54447367,3863.7,3863.6,0.5778]
[1761944747744,2.65947967,3863.7,3863.6,0.5778]
[1761944747943,0.54447367,3863.7,3863.6,0.5778]
[1761944748143,1.4556194,3863.7,3863.6,0.5778]
[1761944748660,1.4556194,3863.7,3863.6,0.5798]
[1761944748853,3.5125784,3863.7,3863.6,0.5798]
[1761944749050,5.4851644,3863.7,3863.6,0.5798]
[1761944749265,5.94862366,3863.7,3863.6,0.5798]
[1761944749476,8.53681632,3863.7,3863.6,0.2909]
[1761944749689,10.19340245,3863.7,3863.6,0.2909]
[1761944750071,7.60520979,3863.7,3863.6,0.2909]
[1761944750386,7.60514716,3863.7,3863.6,0.2909]
[1761944751045,7.18293416,3863.7,3863.6,0.2909]
[1761944751269,4.97528216,3863.7,3863.6,0.2909]
[1761944751542,0.54447367,3863.7,3863.6,0.5798]
[1761944751950,1.46071908,3863.7,3863.6,0.5798]
[1761944754396,0.54447367,3863.7,3863.6,0.5798]
[1761944754893,1.23167391,3863.7,3863.6,0.5798]
[1761944755485,1.23167391,3863.7,3863.6,0.5473595]
[1761944755995,0.54447367,3863.7,3863.6,0.86093672]
[1761944756199,0.54447367,3863.7,3863.6,0.5473595]
[1761944757216,0.54447367,3863.7,3863.6,0.2584595]
[1761944757400,1.23167391,3863.7,3863.6,0.5149595]
[1761944758196,0.54447367,3863.7,3863.6,0.5149595]
[1761944761202,0.54447367,3863.7,3863.6,0.54084209]
[1761944761907,0.54447367,3863.7,3863.6,3.70085975]
[1761944762075,0.54447367,3863.7,3863.6,3.12910174]
[1761944763180,0.40597853,3863.8,3863.6,3.12910174]
[1761944763382,0.54961249,3864.1,3863.8,2.58811968]
[1761944763570,0.54961249,3864.0,3863.9,2.61393927]
[1761944763771,0.54961249,3864.0,3863.9,2.87043927]
[1761944764104,0.54961249,3864.0,3863.9,3.12693927]
[1761944764307,0.54961249,3864.0,3863.9,3.69864516]
[1761944764523,1.39968,3864.9,3863.9,3.69864516]
[1761944764524,0.54961249,3864.3,3864.2,2.58785777]
[1761944764689,0.54961249,3864.3,3864.1,2.58790614]
[1761944765018,0.68720024,3864.6,3864.2,0.3812]
[1761944765228,0.68720024,3864.7,3864.5,0.2565]
[1761944765448,0.54954265,3864.6,3864.5,0.2565]
[1761944765596,0.54954265,3864.6,3864.3,0.2565]
[1761944765795,0.68720024,3864.7,3864.5,0.2565]
[1761944766110,0.68720024,3864.7,3864.6,0.2565]
[1761944766468,1.6426402,3864.7,3864.6,0.2565]
[1761944767223,0.54952492,3864.7,3864.6,0.2565]
[1761944770268,0.54952492,3864.7,3864.2,0.1247]
[1761944770567,0.4521,3864.3,3863.1,0.2615]
[1761944770727,6.23650455,3864.2,3863.1,0.005]
[1761944770930,0.54952492,3864.1,3863.4,0.2565]
[1761944771945,0.54952492,3864.1,3864.0,0.2565]
[1761944772446,0.54952492,3864.1,3863.3,0.0258846]
[1761944772611,0.54952492,3864.1,3863.4,0.2565]
[1761944772809,0.54952492,3864.1,3863.5,0.02588326]
[1761944773014,0.54952492,3864.1,3864.0,0.2565]
[1761944773644,3.522356,3864.3,3864.0,0.2565]
[1761944773811,0.54952492,3864.2,3864.0,0.2565]
[1761944774162,3.250329,3864.3,3864.0,0.2565]
[1761944774340,0.54952492,3864.2,3864.1,0.2565]
[1761944774514,0.54952492,3864.5,3864.1,0.2565]
[1761944775132,0.54952492,3864.6,3864.1,0.2565]
[1761944775332,0.56969731,3864.5,3864.1,0.2565]
[1761944775555,2.227734,3864.5,3864.1,0.2565]
[1761944775756,0.54952492,3864.4,3864.1,0.2565]
[1761944775917,0.4731,3864.5,3864.1,0.2565]
[1761944776226,0.31095052,3864.4,3863.7,0.2565]
[1761944778048,0.54952492,3864.5,3864.3,0.2565]
[1761944778549,3.725382,3864.6,3864.3,0.2565]
[1761944778846,3.725382,3864.6,3864.1,0.1247]
[1761944778847,0.54952492,3864.5,3864.1,0.1247]
[1761944779016,1.01462492,3864.6,3864.1,0.1247]
[1761944780334,0.54952492,3864.5,3864.1,0.1247]
[1761944781771,1.94920492,3864.5,3864.1,0.1247]
[1761944782290,0.54952492,3864.4,3864.1,0.1247]
[1761944783852,0.95546737,3864.4,3864.1,0.1247]
[1761944784748,0.95546737,3864.4,3864.3,0.2565]
[1761944785849,0.95546737,3864.4,3864.3,0.513]
[1761944786374,0.40594245,3864.4,3864.3,0.2565]
[1761944786684,0.40594245,3864.4,3864.3,3.1007908]
[1761944786975,0.40594245,3864.4,3864.3,3.68616525]
[1761944787370,0.40594245,3864.4,3864.3,1.07249655]
[1761944787771,0.40594245,3864.4,3864.3,3.66028735]
[1761944788376,0.40594245,3864.4,3864.3,0.513]
[1761944788554,0.40594245,3864.4,3864.3,3.1007908]
[1761944789159,0.40594245,3864.4,3864.3,0.513]
[1761944790192,0.40594245,3864.4,3864.3,0.2565]
[1761944790886,1.34114245,3864.4,3863.6,0.002]
[1761944791081,1.34114245,3864.4,3863.6,2.59025433]
[1761944791279,1.34114245,3864.4,3863.6,0.2585]
[1761944791486,6.33791,3864.3,3863.6,0.002]
[1761944791678,0.54952492,3864.2,3863.6,0.002]
[1761944791848,0.4651,3864.2,3863.6,0.002]
[1761944792978,0.54952492,3864.3,3864.1,0.2565]
[1761944793149,0.40594245,3864.4,3864.1,0.2565]
[1761944793981,0.40594245,3864.4,3864.3,0.2565]
[1761944795353,1.34114245,3864.4,3863.6,0.002]
[1761944795584,1.89066737,3864.4,3863.6,0.002]
[1761944796356,1.89066737,3864.4,3863.6,2.59024214]
[1761944796572,1.89066737,3864.4,3863.7,2.58819266]
[1761944796769,0.54952492,3864.3,3863.7,2.58819266]
[1761944796991,1.34114245,3864.4,3863.6,2.5902358]
[1761944797158,0.4651,3864.4,3863.6,2.8467358]
[1761944797360,0.4651,3864.4,3863.6,2.84675165]
[1761944797979,0.54952492,3864.5,3863.7,2.84469224]
[1761944798175,0.54952492,3864.4,3863.7,0.2565]
[1761944798378,0.54952492,3864.5,3863.7,0.2565]
[1761944798793,1.01462492,3864.5,3863.7,0.2565]
[1761944799697,1.01562492,3864.5,3863.7,0.2565]
[1761944800385,0.54952492,3864.4,3863.7,0.2565]
[1761944800590,0.95546958,3864.4,3863.7,0.2565]
[1761944800988,0.95546958,3864.4,3863.7,2.84469177]
[1761944803001,0.95546958,3864.4,3864.3,0.2565]
[1761944803166,0.40594466,3864.4,3864.0,2.58793385]
[1761944803797,0.40594466,3864.4,3863.9,2.61393373]
[1761944805195,0.40594466,3864.4,3864.0,2.58798108]
[1761944805382,0.40594466,3864.4,3864.0,2.84444585]
[1761944805584,0.40594466,3864.4,3863.9,0.02588058]
[1761944805813,0.40594466,3864.4,3864.0,2.58795242]
[1761944806172,0.95546958,3864.4,3864.0,2.58795242]
[1761944806479,0.40594466,3864.4,3864.0,2.58795242]
[1761944806880,0.40594466,3864.4,3864.1,2.58792092]
[1761944807393,0.40594466,3864.4,3864.0,2.58796812]
[1761944809467,0.40594466,3864.4,3863.9,0.28238058]
[1761944809682,0.40594466,3864.4,3864.0,2.58796546]
[1761944810428,0.40594466,3864.4,3864.1,2.58791172]
[1761944811438,0.40594466,3864.4,3864.0,2.58797329]
[1761944812135,0.40594466,3864.4,3864.3,0.2565]
[1761944812833,0.55238873,3864.5,3864.3,2.8701687]
[1761944813211,0.55238873,3864.5,3864.4,2.84422383]
[1761944813411,0.001,3864.5,3864.4,0.2565]
[1761944813717,0.001,3864.5,3864.4,2.84422383]
[1761944813898,0.001,3864.5,3864.4,2.87010106]
[1761944814104,0.001,3864.5,3864.4,0.28237723]
[1761944814439,0.001,3864.5,3864.4,2.87010106]
[1761944814608,0.001,3864.5,3864.4,0.2565]
[1761944815007,0.001,3864.5,3864.4,2.84422383]
[1761944815411,0.001,3864.5,3864.4,0.2565]
[1761944815812,0.001,3864.5,3864.4,2.84422383]
[1761944816214,0.001,3864.5,3864.4,0.2565]
[1761944816409,0.001,3864.5,3864.4,0.28237723]
[1761944817950,0.001,3864.5,3864.4,2.87010106]
[1761944818156,0.001,3864.5,3864.4,2.84422383]
[1761944819032,0.001,3864.5,3864.4,2.87010106]
[1761944819538,0.001,3864.5,3864.4,3.44154525]
[1761944819738,0.001,3864.5,3864.4,3.69804525]
[1761944820254,0.001,3864.5,3864.4,3.44154525]
[1761944820458,0.001,3864.5,3864.4,3.41566802]
[1761944821052,0.001,3864.5,3864.4,0.82794419]
[1761944822227,0.001,3864.5,3864.4,0.2565]
[1761944826967,0.4726,3864.5,3864.2,2.58783428]
[1761944827147,0.4716,3864.3,3863.6,0.002]
[1761944827458,0.55290081,3864.5,3863.7,2.58815154]
[1761944827757,1.03100081,3864.5,3863.7,0.2565]
[1761944828061,0.4791,3864.5,3863.7,0.2565]
[1761944828264,0.4781,3864.4,3863.7,0.2565]
[1761944829256,0.4781,3864.4,3863.7,0.80001393]
[1761944829645,0.4781,3864.4,3863.7,3.38819051]
[1761944830039,0.4781,3864.4,3863.7,0.80001393]
[1761944830233,0.4781,3864.4,3863.7,3.38820032]
[1761944831154,1.03000081,3864.4,3863.7,3.38820032]
[1761944833074,1.03000081,3864.4,3863.8,2.58812478]
[1761944834151,1.03000081,3864.4,3863.8,2.58812128]
[1761944834344,1.03000081,3864.4,3863.7,3.13170077]
[1761944837256,1.03000081,3864.4,3863.7,2.58818684]
[1761944837457,0.55190081,3864.4,3863.7,2.58818684]
[1761944837654,1.04090081,3864.4,3863.8,2.58811675]
[1761944838179,1.04090081,3864.4,3863.7,2.58817059]
[1761944838378,0.55190081,3864.4,3863.7,2.58817059]
[1761944838565,0.489,3864.3,3863.7,2.58817059]
[1761944840163,0.489,3864.3,3863.8,2.58811275]
[1761944841892,0.489,3864.3,3863.7,2.58817606]
[1761944842092,0.489,3864.3,3863.8,2.58812436]
[1761944843090,0.489,3864.3,3863.7,2.58817378]
[1761944843403,0.489,3864.3,3863.9,2.58801947]
[1761944843862,0.489,3864.3,3863.6,0.002]
[1761944844211,0.489,3864.3,3863.7,2.58815216]
[1761944844504,0.489,3864.3,3863.8,2.58811331]
[1761944847497,0.6707,3863.9,3863.6,0.002]
[1761944847799,0.4799,3863.7,3863.6,0.002]
[1761944848234,0.9798,3863.7,3863.6,0.002]
[1761944854037,1.38579068,3863.7,3863.6,0.002]
[1761944858458,0.88589068,3863.7,3863.6,0.002]
[1761944858670,0.40599068,3863.7,3863.6,0.2585]
[1761944858833,0.40599068,3863.7,3863.6,2.59025965]
[1761944859363,0.40599068,3863.7,3863.6,2.84675965]
[1761944859735,7.34794345,3863.7,3863.6,0.002]
[1761944860055,16.65606348,3863.7,3863.6,0.002]
[1761944860783,15.79211107,3863.7,3863.6,0.002]
[1761944861463,14.52205007,3863.7,3863.6,0.002]
[1761944861781,9.28648637,3863.7,3863.6,0.002]
[1761944863383,6.25377037,3863.7,3863.6,0.002]
[1761944864371,2.76727237,3863.7,3863.6,0.002]
[1761944864525,2.0406833,3863.7,3863.6,0.002]
[1761944864890,1.38579068,3863.7,3863.6,0.002]
[1761944867185,0.9798,3863.7,3863.6,0.002]
[1761944869079,0.9808,3863.7,3863.6,0.002]
[1761944870588,1.38679378,3863.7,3863.6,0.002]
[1761944871463,9.16852978,3863.7,3863.6,0.002]
[1761944871672,9.71965581,3863.7,3863.6,0.002]
[1761944872055,7.11594581,3863.7,3863.6,0.002]
[1761944872652,1.93791981,3863.7,3863.6,0.002]
[1761944873261,1.38679378,3863.7,3863.6,0.002]
[1761944875586,8.29791981,3863.7,3863.6,0.002]
[1761944880695,18.28664203,3863.7,3863.6,0.002]
[1761944880868,18.87052721,3863.7,3863.6,0.002]
[1761944881068,17.13493921,3863.7,3863.6,0.002]
[1761944882002,16.04827921,3863.7,3863.6,0.002]
[1761944883306,17.44795921,3863.7,3863.6,0.002]
[1761944883477,45.62314258,3863.7,3863.6,0.002]
[1761944883676,3.98814064,3863.3,3863.2,0.002]
[1761944883882,41.23933101,3863.3,3863.2,0.002]
[1761944884106,43.38039699,3863.3,3863.2,0.002]
[1761944884312,35.05022188,3863.2,3863.1,0.005]
[1761944884467,36.56884791,3863.2,3863.1,0.005]
[1761944884892,36.67264951,3863.2,3863.1,0.005]
[1761944885088,38.64889368,3863.2,3863.1,0.005]
[1761944885531,9.05518041,3863.2,3863.1,0.005]
[1761944885715,39.05518041,3863.2,3863.1,0.005]
[1761944886578,39.05518041,3863.2,3863.1,0.007]
[1761944886775,13.50710886,3862.2,3861.8,0.009]
[1761944886979,16.42014525,3862.2,3861.8,0.009]
[1761944887206,15.01572483,3862.2,3861.8,0.009]
[1761944887409,18.21055168,3862.2,3861.8,0.009]
[1761944887706,27.63206268,3862.2,3861.8,0.009]
[1761944888004,27.6030373,3862.2,3861.8,0.009]
[1761944888390,27.60075836,3862.2,3861.8,0.009]
[1761944888890,29.51119336,3862.2,3861.8,0.009]
[1761944889296,26.16092536,3862.2,3861.8,0.009]
[1761944889681,30.91376636,3862.2,3861.8,0.009]
[1761944889887,27.83450336,3862.2,3861.8,0.009]
[1761944890288,27.14006236,3862.2,3861.8,0.009]
[1761944890706,33.13899336,3862.2,3861.8,0.009]
[1761944890913,29.50702136,3862.2,3861.8,0.009]
[1761944891780,32.49975136,3862.2,3861.8,0.009]
[1761944891981,31.19236536,3862.2,3861.8,0.009]
[1761944892601,30.24190736,3862.2,3861.8,0.009]
[1761944893377,28.95160636,3862.2,3861.8,0.009]
[1761944893582,27.77920936,3862.2,3861.8,0.009]
[1761944894114,28.18544302,3862.2,3861.8,0.009]
[1761944895015,33.1565176,3862.2,3861.8,0.009]
[1761944895211,27.7489466,3862.2,3861.8,0.009]
[1761944895709,28.15536471,3862.2,3861.8,0.009]
[1761944895913,30.71427337,3862.2,3861.8,0.009]
[1761944896696,30.39521171,3862.2,3861.8,0.009]
[1761944896911,43.54362071,3862.2,3861.8,0.009]
[1761944897402,43.33551471,3862.2,3861.8,0.009]
[1761944897730,42.92928105,3862.2,3861.8,0.009]
[1761944897896,35.11216805,3862.2,3861.8,0.009]
[1761944898329,35.43122971,3862.2,3861.8,0.009]
[1761944898909,43.47915971,3862.2,3861.8,0.009]
[1761944900827,43.88540172,3862.2,3861.8,0.009]
[1761944901732,50.24540172,3862.2,3861.8,0.009]
[1761944902731,34.39505243,3861.2,3861.1,0.005]
[1761944903032,34.39505243,3861.2,3858.7,5.2355637]
[1761944903034,29.24784813,3860.4,3859.3,0.1317]
[1761944903334,26.58560483,3860.4,3859.3,0.3952]
[1761944904032,33.59430683,3860.4,3859.3,0.3952]
[1761944904367,28.00913301,3860.4,3859.3,0.3952]
[1761944904650,29.40881301,3860.4,3859.3,0.1317]
[1761944904850,29.95528325,3860.4,3859.3,0.1317]
[1761944905050,30.57403825,3860.4,3859.3,0.1317]
[1761944905249,26.80388125,3860.4,3859.3,0.1317]
[1761944905946,27.21041595,3860.4,3859.3,0.1317]
[1761944906149,29.00907795,3860.4,3859.3,0.1317]
[1761944906447,21.69858982,3860.4,3859.3,0.3952]
[1761944906746,23.88246025,3860.4,3859.3,0.3952]
[1761944907252,28.36534125,3860.4,3859.3,0.3952]
[1761944908016,30.06579625,3860.4,3859.3,0.3952]
[1761944908356,30.06579625,3860.4,3859.3,0.1317]
[1761944909258,41.47013095,3860.4,3859.3,0.1317]
[1761944909462,2.59053935,3860.2,3859.1,0.005]
[1761944909620,30.1114312,3858.2,3858.1,0.005]
[1761944909823,15.09066837,3858.2,3858.1,0.005]
[1761944910057,20.58140307,3858.2,3858.1,0.005]
[1761944910352,38.41480507,3858.2,3858.1,0.005]
[1761944910519,16.71469207,3858.2,3858.1,0.005]
[1761944910723,19.80327429,3858.2,3858.1,0.005]
[1761944911223,4.65165937,3858.2,3858.1,0.005]
[1761944911447,19.08499212,3858.2,3858.1,0.005]
[1761944911719,19.63019611,3858.2,3858.1,0.005]
[1761944912146,11.30605019,3858.2,3858.1,0.005]
[1761944912350,20.64083409,3858.2,3858.1,0.005]
[1761944913140,14.38092887,3858.2,3858.1,0.005]
[1761944913371,22.94136516,3858.2,3858.1,0.005]
[1761944913572,28.54089556,3858.2,3858.1,0.005]
[1761944913877,18.06976816,3858.2,3858.1,0.005]
[1761944914075,23.30533186,3858.2,3858.1,0.005]
[1761944914226,28.9475726,3858.2,3858.1,0.005]
[1761944914426,49.73893885,3858.2,3858.1,0.005]
[1761944914626,58.41937257,3858.2,3858.1,0.005]
[1761944915353,57.73893885,3858.2,3858.1,0.005]
[1761944915587,57.62750765,3858.2,3858.1,0.005]
[1761944915853,58.30749207,3858.2,3858.1,0.005]
[1761944916057,57.95287682,3858.2,3858.1,0.005]
[1761944916876,2.99805818,3857.2,3856.1,0.1447]
[1761944917174,37.21237623,3857.2,3856.1,0.1447]
[1761944917366,37.70907623,3857.2,3856.1,0.1447]
[1761944917679,40.71518023,3857.2,3856.1,0.1447]
[1761944917848,40.09697123,3857.2,3856.1,0.1447]
[1761944918042,40.74962329,3857.2,3856.1,0.1447]
[1761944918275,40.29501129,3857.2,3856.1,0.1447]
[1761944918451,40.54999429,3857.2,3856.1,0.1447]
[1761944918656,38.89352329,3857.2,3856.1,0.1447]
[1761944919346,46.89352329,3857.2,3856.1,0.1447]
[1761944919565,20.40459629,3857.2,3856.1,0.1447]
[1761944919755,47.51883129,3857.2,3856.1,0.1447]
[1761944920079,14.85745141,3857.2,3856.1,0.4112]
[1761944920281,10.18089,3857.2,3857.1,0.2715]
[1761944920445,10.03619,3857.2,3857.1,0.2715]
[1761944920650,10.03619,3857.2,3857.1,0.538]
[1761944921369,10.03619,3857.2,3857.1,0.2715]
[1761944921849,10.03619,3857.2,3857.1,0.2215]
[1761944922575,10.44289019,3857.2,3857.1,0.2215]
[1761944922976,10.44289019,3857.2,3857.1,0.2235]
[1761944923573,10.44289019,3857.2,3857.1,0.445]
[1761944924173,8.40670019,3857.2,3857.1,0.2235]
[1761944924482,8.40670019,3857.2,3857.1,0.445]
[1761944924687,8.40670019,3857.2,3857.1,3.34139482]
[1761944926349,0.40670019,3857.2,3857.1,3.34139482]
[1761944926861,0.001,3858.2,3857.1,0.74877343]
[1761944927061,0.001,3858.2,3858.1,0.3032]
[1761944927381,0.001,3858.2,3858.1,0.5247]
[1761944927782,0.40759186,3858.2,3858.1,0.5247]
[1761944928180,0.001,3858.2,3858.1,0.5247]
[1761944929495,0.001,3858.2,3858.1,0.3032]
[1761944930179,0.001,3858.2,3858.1,0.5247]
[1761944931365,0.40758476,3858.2,3858.1,0.5247]
[1761944932403,0.40758476,3858.2,3858.1,0.83637604]
[1761944932795,0.40758476,3858.2,3858.1,0.5247]
[1761944933299,0.40758476,3858.2,3858.1,3.14256889]
[1761944933983,0.40758476,3858.2,3858.1,0.55061949]
[1761944935097,0.40758476,3858.2,3858.1,0.5247]
[1761944936527,0.40758476,3858.2,3858.1,3.1166494]
[1761944936711,0.40758476,3858.2,3858.1,3.14256889]
[1761944936878,0.40758476,3858.2,3858.1,3.71603341]
[1761944941092,0.001,3858.2,3858.1,3.71603341]
[1761944942338,0.001,3858.2,3858.1,2.8951494]
[1761944942500,0.001,3858.2,3858.1,3.1166494]
[1761944944021,0.001,3858.2,3858.1,3.14256889]
[1761944945928,0.001,3858.2,3858.1,3.06465172]
[1761944946128,0.001,3858.2,3858.1,3.59895572]
[1761944946327,0.001,3858.2,3858.1,4.85388402]
[1761944947713,0.001,3858.2,3858.1,4.80388402]
[1761944947910,0.001,3858.2,3858.1,4.90773709]
[1761944948919,0.40647038,3859.4,3859.3,2.59114347]
[1761944949120,0.005,3859.7,3859.6,2.59094206]
[1761944949304,0.005,3859.7,3859.6,4.17350276]
[1761944949500,0.005,3859.7,3859.6,4.26710276]
[1761944950045,0.005,3859.7,3859.6,3.94402113]
[1761944951499,0.005,3859.7,3859.6,3.91811171]
[1761944952028,0.005,3859.7,3859.6,3.94402113]
[1761944952618,0.005,3859.7,3859.6,3.91811171]
[1761944954961,0.005,3859.7,3859.6,0.0936]
[1761944955122,0.005,3859.7,3859.6,2.59094206]
[1761944957549,0.005,3859.7,3859.5,2.59099163]
[1761944957924,0.005,3859.7,3859.6,2.59094206]
[1761944959055,0.4568,3859.7,3859.3,2.59114274]
[1761944959347,0.4568,3859.7,3859.6,2.59094206]
[1761944959566,0.9185,3859.7,3859.6,2.59094206]
[1761944960213,0.006,3859.7,3859.6,2.59094206]
[1761944960453,0.006,3859.7,3859.6,2.68454206]
[1761944961018,0.006,3859.7,3859.6,0.0936]
[1761944961214,0.006,3859.7,3859.6,2.59094206]
[1761944961845,0.9185,3859.7,3859.4,2.59103623]
[1761944962048,0.9185,3859.7,3858.0,6.35829943]
[1761944962049,0.4518,3859.5,3858.0,6.35829943]
[1761944962342,0.4607,3859.6,3859.2,2.59117046]
[1761944962643,0.4607,3859.6,3859.3,0.02591143]
[1761944962942,0.86710662,3859.6,3859.3,0.02591143]
[1761944963148,0.4518,3859.4,3859.3,0.02591143]
[1761944963525,0.9125,3859.4,3858.3,0.0936]
[1761944963715,0.9125,3859.4,3858.4,0.35388451]
[1761944964050,0.9125,3859.4,3858.2,0.86329277]
[1761944964051,0.4607,3859.3,3858.8,2.59147288]
[1761944964262,0.4607,3859.3,3858.2,0.86329277]
[1761944964263,0.4607,3859.3,3858.2,0.76969277]
[1761944964427,0.4607,3859.3,3858.1,0.0837]
[1761944964615,0.006,3859.7,3859.1,2.59122924]
[1761944964949,0.4607,3859.6,3859.2,0.0259121]
[1761944965449,0.4607,3859.6,3859.2,2.61712271]
[1761944965829,0.86713375,3859.6,3859.2,2.61712271]
[1761944966053,0.86713375,3859.6,3859.2,0.0259121]
[1761944966054,0.40643375,3859.6,3859.2,0.0259121]
[1761944966261,0.40643375,3859.6,3859.5,2.68460919]
[1761944966559,0.40643375,3859.6,3859.5,2.71051928]
[1761944966761,0.40643375,3859.6,3859.5,2.68460919]
[1761944967747,0.006,3859.7,3859.6,2.59094206]
[1761944969967,0.006,3859.7,3859.6,3.32224661]
[1761944975720,1e-08,3859.7,3859.6,3.32224661]
[1761944976015,1e-08,3859.7,3859.6,3.72775061]
[1761944976417,1e-08,3859.7,3859.6,3.70184119]
[1761944976639,1e-08,3859.7,3859.6,3.83064119]
[1761944978066,1e-08,3859.7,3859.6,3.83264119]
[1761944978271,1e-08,3859.7,3859.6,3.85855061]
[1761944979819,1e-08,3859.7,3859.6,3.83264119]
[1761944982553,1e-08,3859.7,3859.6,3.85855061]
[1761944983461,1e-08,3859.7,3859.6,10.33219269]
[1761944983657,1e-08,3859.7,3859.6,10.30628327]
[1761944983969,0.005,3860.7,3860.6,2.59027094]
[1761944984134,0.005,3860.7,3860.6,2.68387094]
[1761944986873,0.005,3861.7,3860.7,0.405504]
[1761944987099,0.89040503,3861.6,3860.7,2.59020384]
[1761944987244,0.89040503,3861.6,3861.4,2.58967628]
[1761944987440,0.40620503,3861.6,3861.5,2.58966722]
[1761944987643,0.1901,3860.9,3860.1,0.4607]
[1761944987872,0.1901,3860.9,3860.8,2.59013675]
[1761944988072,0.6743,3860.9,3860.8,2.61603811]
[1761944988277,1.1446,3860.9,3860.8,2.61603811]
[1761944988853,1.1446,3860.9,3860.8,2.59013675]
[1761944989566,1.1446,3860.9,3860.8,7.83217955]
[1761944990894,1.1446,3860.9,3859.2,5.2440428]
[1761944990895,1.1446,3860.9,3860.1,7.83264857]
[1761944991097,0.4703,3860.7,3860.2,2.59053935]